bitfinex-derivatives/quotes_SOLF0:USTF0_20241127
["timestamp","ask_amount","ask_price","bid_price","bid_amount"]
[1732748165382,2.0743,240.77,240.72,4.3346]
[1732748165581,2.0743,240.77,240.72,2.26]
[1732748166981,2.0743,240.77,240.73,2.0745]
[1732748167478,6.29429926,240.8,240.72,2.26]
[1732748167786,6.29429926,240.8,240.72,4.3346]
[1732748168285,2.0743,240.77,240.72,4.3346]
[1732748169680,2.0743,240.77,240.72,2.0746]
[1732748169883,2.0744,240.76,240.72,4.2946]
[1732748171583,2.0744,240.76,240.72,2.22]
[1732748172587,2.0744,240.76,240.72,4.2946]
[1732748172786,6.29429926,240.81,240.72,2.22]
[1732748173680,2.0744,240.76,240.72,4.2947]
[1732748174083,2.0744,240.75,240.72,2.22]
[1732748176185,2.0745,240.74,240.72,2.22]
[1732748176780,6.29429926,240.81,240.72,2.22]
[1732748176987,2.0744,240.75,240.72,4.2947]
[1732748180286,2.0744,240.75,240.72,2.22]
[1732748181284,2.0744,240.75,240.72,4.2947]
[1732748184491,2.0744,240.75,240.72,2.22]
[1732748185693,2.0745,240.74,240.72,2.22]
[1732748194600,2.22,240.84,240.59,2.63092877]
[1732748194804,6.3675,240.83,240.6,3.4768]
[1732748195097,8.8715,240.83,240.6,3.4768]
[1732748195401,2.0748,240.71,240.68,2.075]
[1732748195696,1.3249,240.82,240.68,2.22]
[1732748195902,2.0748,240.71,240.68,2.22]
[1732748196495,2.0748,240.71,240.68,4.295]
[1732748200403,2.0747,240.72,240.68,4.295]
[1732748200800,2.0747,240.72,240.69,2.0749]
[1732748202308,2.0746,240.73,240.69,2.0749]
[1732748207307,1.3249,240.82,240.68,2.22]
[1732748207507,2.0745,240.75,240.68,2.22]
[1732748207803,1.3249,240.82,240.68,2.22]
[1732748208008,2.0743,240.77,240.68,2.22]
[1732748208705,2.0743,240.77,240.72,2.0746]
[1732748209507,2.504,240.83,240.72,2.0746]
[1732748209705,2.0743,240.76,240.72,2.0746]
[1732748213611,2.0743,240.76,240.68,2.22]
[1732748213812,2.0743,240.76,240.72,2.0746]
[1732748214110,2.0741,240.79,240.68,2.22]
[1732748214305,2.0741,240.79,240.76,2.0743]
[1732748214611,41.43176432,240.84,240.75,2.22]
[1732748214910,41.43176432,240.84,240.76,4.2942]
[1732748215109,41.43176432,240.84,240.76,2.22]
[1732748215312,41.43176432,240.84,240.79,2.074]
[1732748215512,41.43176432,240.84,240.76,2.22]
[1732748216215,41.43176432,240.84,240.79,2.074]
[1732748216216,2.0738,240.83,240.79,2.074]
[1732748216409,3.8665,240.89,240.76,2.22]
[1732748216812,2.22,240.93,240.76,2.22]
[1732748217117,2.22,240.93,240.77,2.5103]
[1732748217416,2.22,240.93,240.82,2.0738]
[1732748217613,2.22,240.93,240.82,4.2938]
[1732748218913,2.0735,240.86,240.82,4.2938]
[1732748221314,2.0735,240.86,240.82,2.0738]
[1732748223320,2.0735,240.85,240.82,2.0738]
[1732748227335,41.46439204,240.91,240.82,2.0738]
[1732748227627,2.0735,240.86,240.83,2.0737]
[1732748228525,6.35284759,240.89,240.81,8.57284759]
[1732748228728,6.35284759,240.89,240.81,2.22]
[1732748229026,41.46439204,240.91,240.81,2.22]
[1732748229224,6.35284759,240.87,240.81,2.22]
[1732748229430,41.46439204,240.91,240.81,8.57284759]
[1732748229625,6.35284759,240.89,240.81,8.57284759]
[1732748230027,2.0736,240.85,240.81,8.57284759]
[1732748230227,41.46439204,240.91,240.81,8.57284759]
[1732748230428,6.35284759,240.89,240.81,8.57284759]
[1732748230926,2.0734,240.87,240.83,2.0737]
[1732748235731,6.35284759,240.88,240.81,8.57284759]
[1732748236032,6.35284759,240.88,240.81,10.64664759]
[1732748236625,2.0736,240.84,240.81,10.64664759]
[1732748238628,2.0736,240.84,240.81,4.2938]
[1732748240434,6.35284759,240.88,240.81,4.2938]
[1732748241133,2.0736,240.85,240.81,4.2938]
[1732748241534,2.0736,240.85,240.81,2.22]
[1732748242336,2.0736,240.85,240.81,4.2939]
[1732748247340,2.0736,240.85,240.81,10.64674759]
[1732748253638,2.0735,240.86,240.82,2.0738]
[1732748254040,2.0735,240.86,240.81,8.57284759]
[1732748255040,2.0735,240.86,240.81,10.64674759]
[1732748256541,2.0735,240.86,240.81,8.57284759]
[1732748256745,2.0735,240.86,240.82,2.0738]
[1732748260838,2.0736,240.85,240.82,2.0738]
[1732748262244,2.0736,240.85,240.81,8.57284759]
[1732748262942,2.0736,240.85,240.82,2.0738]
[1732748267042,2.0736,240.85,240.81,10.64674759]
[1732748268641,2.0736,240.85,240.81,4.2939]
[1732748268839,41.46439204,240.91,240.81,4.2939]
[1732748269046,47.81723963,240.91,240.81,4.2939]
[1732748269247,47.81723963,240.91,240.81,2.0739]
[1732748270051,47.81723963,240.91,240.79,4.2741]
[1732748270254,2.0738,240.83,240.79,2.2]
[1732748270846,2.0738,240.83,240.79,4.274]
[1732748271350,2.0738,240.83,240.79,2.074]
[1732748273953,2.0738,240.83,240.8,2.074]
[1732748277350,47.81723963,240.91,240.8,2.074]
[1732748277551,2.0736,240.84,240.8,2.074]
[1732748279348,2.0736,240.84,240.79,6.35284759]
[1732748279557,2.0736,240.84,240.81,2.0739]
[1732748280651,2.0737,240.83,240.8,2.074]
[1732748280845,2.0737,240.83,240.79,6.35284759]
[1732748283056,2.0737,240.83,240.79,8.42684759]
[1732748283749,2.0737,240.83,240.8,2.074]
[1732748285859,2.0737,240.84,240.8,2.074]
[1732748287755,2.0737,240.84,240.8,8.42684759]
[1732748288159,43.66439204,240.91,240.82,6.35284759]
[1732748288360,41.46439204,240.91,240.84,2.0736]
[1732748288565,41.46439204,240.91,240.82,6.35284759]
[1732748289256,2.0734,240.88,240.84,2.0736]
[1732748289663,2.0734,240.88,240.84,8.42644759]
[1732748290252,2.0734,240.87,240.84,8.42644759]
[1732748291358,44.78769977,240.88,240.85,2.0735]
[1732748293562,2.0733,240.88,240.85,2.0735]
[1732748293962,2.0733,240.88,240.86,6.35284759]
[1732748294959,2.0732,240.89,240.86,8.42634759]
[1732748295760,2.0733,240.88,240.86,8.42634759]
[1732748296069,42.71439977,240.88,240.86,8.42634759]
[1732748296262,42.71439977,240.88,240.87,2.0734]
[1732748297158,42.71439977,240.88,240.86,6.35284759]
[1732748297159,12.45,241.08,240.86,6.35284759]
[1732748297367,2.0728,240.94,240.9,6.35284759]
[1732748298164,2.0728,240.94,240.9,8.42594759]
[1732748298365,2.0728,240.94,240.9,10.62594759]
[1732748300265,12.45,241.15,240.92,6.35284759]
[1732748300472,6.35284759,241.05,240.97,6.35284759]
[1732748300764,6.35284759,241.05,240.97,1.31244608]
[1732748300967,42.69078922,241.06,240.97,1.31244608]
[1732748301176,42.69078922,241.06,240.97,3.38494608]
[1732748301463,42.69078922,241.06,240.99,6.35284759]
[1732748301670,42.69078922,241.06,240.99,8.42514759]
[1732748301671,2.072,241.04,240.99,8.42514759]
[1732748301860,42.69078922,241.06,240.99,8.42514759]
[1732748302170,42.69078922,241.06,241.01,6.35284759]
[1732748302371,2.0718,241.05,241.01,6.35284759]
[1732748302572,42.69078922,241.06,240.96,2.2]
[1732748302769,42.69078922,241.06,240.99,6.35284759]
[1732748302968,2.0719,241.04,240.99,6.35284759]
[1732748303168,42.69078922,241.06,240.99,6.35284759]
[1732748303969,2.072,241.03,240.99,6.35284759]
[1732748304662,2.072,241.03,240.98,8.42524759]
[1732748305270,2.072,241.03,240.98,2.0724]
[1732748305471,2.072,241.03,240.98,8.42524759]
[1732748306174,42.69078922,241.06,241.0,8.42504759]
[1732748306175,2.0719,241.04,241.0,8.42504759]
[1732748310377,2.0719,241.04,241.02,6.35284759]
[1732748311381,2.0719,241.04,241.02,8.55284759]
[1732748311580,2.0719,241.05,241.02,8.55284759]
[1732748312172,2.0717,241.07,241.02,8.55284759]
[1732748312380,6.35284759,241.12,241.02,8.55284759]
[1732748312686,6.35284759,241.12,241.02,10.62494759]
[1732748312878,2.0717,241.07,241.02,10.62494759]
[1732748313280,2.0718,241.06,241.02,10.62494759]
[1732748316395,2.0718,241.05,241.02,2.2]
[1732748317191,2.0718,241.05,241.03,6.35284759]
[1732748318497,2.0717,241.06,241.03,6.35284759]
[1732748324304,2.0717,241.06,241.04,6.35284759]
[1732748326106,2.0717,241.06,241.03,2.072]
[1732748326303,2.0717,241.06,241.04,6.35284759]
[1732748327106,2.0715,241.09,241.04,6.35284759]
[1732748327294,6.35284759,241.08,240.95,31.1275645]
[1732748327498,6.35284759,241.08,240.99,8.55284759]
[1732748327698,2.0721,241.02,240.99,8.55284759]
[1732748329100,2.0721,241.02,240.99,10.62514759]
[1732748330298,6.35284759,241.08,240.95,31.1275645]
[1732748330504,6.35284759,241.04,240.95,39.68041209]
[1732748330806,6.35284759,241.04,240.95,37.48041209]
[1732748331004,2.0725,240.97,240.95,6.35284759]
[1732748332510,2.0725,240.97,240.94,4.2728]
[1732748332808,2.0725,240.97,240.96,6.35284759]
[1732748332998,2.0725,240.97,240.94,4.2728]
[1732748333204,2.0725,240.97,240.95,6.35284759]
[1732748334403,2.0726,240.96,240.94,2.2]
[1732748334607,6.35284759,241.02,240.92,8.55284759]
[1732748334805,1.283,241.01,240.92,6.35284759]
[1732748334999,2.525,241.01,240.92,6.35284759]
[1732748336904,2.0728,240.94,240.92,6.35284759]
[1732748337707,2.525,241.01,240.9,4.273]
[1732748337908,2.0729,240.93,240.9,4.273]
[1732748342116,2.525,241.01,240.9,2.2]
[1732748342315,2.525,241.01,240.92,6.35284759]
[1732748342618,6.35284759,241.0,240.92,6.35284759]
[1732748342917,6.35284759,240.98,240.88,2.2]
[1732748343215,6.35284759,240.98,240.89,6.35284759]
[1732748343417,2.0731,240.9,240.89,6.35284759]
[1732748343717,2.0731,240.9,240.88,2.2]
[1732748343919,2.0731,240.9,240.89,6.35284759]
[1732748345710,2.0731,240.9,240.88,2.2]
[1732748345917,2.0731,240.9,240.89,6.35284759]
[1732748348313,6.35284759,240.92,240.8,1.2442]
[1732748348511,6.35284759,240.92,240.83,6.35284759]
[1732748348908,1.2067,240.91,240.83,6.35284759]
[1732748349117,2.0737,240.83,240.8,5.5182]
[1732748349415,2.0737,240.83,240.82,6.35284759]
[1732748350216,2.0736,240.84,240.82,6.35284759]
[1732748350419,2.0736,240.84,240.8,2.074]
[1732748350717,2.0736,240.84,240.82,6.35284759]
[1732748350915,2.0736,240.84,240.8,2.074]
[1732748351109,2.0736,240.84,240.82,6.35284759]
[1732748351923,2.5364,240.91,240.78,33.35279929]
[1732748352125,2.0736,240.84,240.83,6.35284759]
[1732748353524,2.0738,240.82,240.81,6.35284759]
[1732748357723,2.0737,240.83,240.81,6.35284759]
[1732748358624,2.0738,240.82,240.81,6.35284759]
[1732748359927,2.0738,240.83,240.81,6.35284759]
[1732748372827,3.7789,240.91,240.78,4.2741]
[1732748372828,2.0739,240.81,240.78,4.2741]
[1732748373032,2.0739,240.81,240.78,8.55284759]
[1732748373440,2.0739,240.81,240.78,6.35284759]
[1732748373735,2.0739,240.81,240.78,8.42694759]
[1732748376231,2.0739,240.81,240.77,2.2]
[1732748376232,2.074,240.8,240.76,2.0743]
[1732748376436,6.35284759,240.85,240.77,6.35284759]
[1732748376834,2.0738,240.83,240.77,6.35284759]
[1732748377034,6.35284759,240.85,240.77,6.35284759]
[1732748377239,6.35284759,240.85,240.76,4.2743]
[1732748377441,2.074,240.81,240.77,8.42704759]
[1732748377643,6.35284759,240.85,240.77,8.42704759]
[1732748378145,2.074,240.8,240.77,6.35284759]
[1732748380038,2.074,240.8,240.77,8.42704759]
[1732748380238,2.074,240.8,240.77,6.35284759]
[1732748380845,6.35284759,240.85,240.77,6.35284759]
[1732748381442,2.0743,240.76,240.74,8.55284759]
[1732748381641,2.0743,240.76,240.74,6.35284759]
[1732748382444,2.0742,240.77,240.73,4.2746]
[1732748382744,6.35284759,240.81,240.69,2.5662]
[1732748382942,2.0745,240.75,240.7,4.2748]
[1732748383145,2.0745,240.75,240.71,6.35284759]
[1732748383452,6.35284759,240.79,240.71,6.35284759]
[1732748383748,6.35284759,240.79,240.71,8.55284759]
[1732748384748,6.35284759,240.79,240.71,2.2]
[1732748384946,2.0745,240.74,240.71,2.2]
[1732748386645,2.2,240.86,240.71,2.2]
[1732748386646,6.35284759,240.8,240.72,6.35284759]
[1732748387650,2.0742,240.78,240.72,6.35284759]
[1732748387851,6.35284759,240.81,240.72,6.35284759]
[1732748388947,2.0744,240.75,240.72,6.35284759]
[1732748389644,6.35284759,240.81,240.72,6.35284759]
[1732748390845,6.35284759,240.79,240.71,2.2]
[1732748391052,6.35284759,240.79,240.71,8.55284759]
[1732748391350,2.0745,240.74,240.71,8.55284759]
[1732748391545,2.2,240.86,240.71,8.55284759]
[1732748391751,6.35284759,240.79,240.71,8.55284759]
[1732748392046,2.2,240.86,240.73,6.35284759]
[1732748392248,2.2,240.86,240.75,6.35284759]
[1732748392448,6.35284759,240.84,240.75,6.35284759]
[1732748392647,2.0741,240.79,240.76,2.0743]
[1732748393150,2.074,240.81,240.76,2.0743]
[1732748393347,6.35284759,240.84,240.76,2.0743]
[1732748393554,6.35284759,240.84,240.77,8.42704759]
[1732748393854,2.0739,240.81,240.77,8.42704759]
[1732748394741,2.074,240.8,240.77,8.42704759]
[1732748394948,6.35284759,240.84,240.77,8.42704759]
[1732748395954,2.0739,240.81,240.77,8.42704759]
[1732748396751,2.0737,240.84,240.8,2.0739]
[1732748396957,6.35284759,240.87,240.78,8.55284759]
[1732748397754,2.0737,240.83,240.79,2.074]
[1732748398151,6.35284759,240.87,240.79,2.074]
[1732748399356,2.0738,240.82,240.79,2.074]
[1732748400158,2.0738,240.82,240.78,8.55284759]
[1732748400355,2.0738,240.82,240.78,10.62694759]
[1732748400560,2.0737,240.84,240.78,8.55284759]
[1732748400757,3.7789,240.91,240.8,6.35284759]
[1732748401058,2.0736,240.85,240.8,6.35284759]
[1732748401283,6.35284759,240.89,240.8,6.35284759]
[1732748401463,6.35284759,240.89,240.8,8.42674759]
[1732748401756,6.35284759,240.89,240.8,2.0739]
[1732748402261,2.0736,240.85,240.81,2.0739]
[1732748402760,1.319,241.0,240.83,6.35284759]
[1732748402957,6.35284759,240.94,240.85,6.35284759]
[1732748403255,6.35284759,240.94,240.85,8.55284759]
[1732748404060,2.073,240.92,240.85,10.62634759]
[1732748404263,6.35284759,240.94,240.85,10.62634759]
[1732748405063,2.0731,240.9,240.85,10.62634759]
[1732748405663,2.073,240.92,240.86,2.0734]
[1732748406060,2.073,240.92,240.87,2.2]
[1732748406363,6.35284759,240.95,240.87,2.2]
[1732748406769,6.35284759,240.95,240.88,2.0733]
[1732748407059,6.35284759,240.97,240.88,2.0733]
[1732748408058,2.0728,240.94,240.88,2.0733]
[1732748408265,6.35284759,240.98,240.89,6.35284759]
[1732748409169,2.0724,240.98,240.92,2.0729]
[1732748409467,2.0724,240.98,240.91,6.35284759]
[1732748409468,1.223,241.06,240.93,2.2]
[1732748409668,6.35284759,241.01,240.93,2.2]
[1732748410167,2.0723,241.0,240.93,2.2]
[1732748410468,2.0723,241.0,240.94,6.35284759]
[1732748411156,2.0722,241.02,240.94,6.35284759]
[1732748411962,2.0722,241.02,240.93,2.2]
[1732748411963,2.0722,241.02,240.96,6.35284759]
[1732748412967,2.0722,241.02,240.96,8.42544759]
[1732748413565,6.35284759,241.06,240.96,6.35284759]
[1732748413869,6.35284759,241.06,240.97,2.0725]
[1732748414071,6.35284759,241.06,240.96,6.35284759]
[1732748414367,1.2347,241.18,241.0,6.35284759]
[1732748414670,6.35284759,241.12,241.04,6.35284759]
[1732748414969,2.0714,241.1,241.05,2.2]
[1732748416069,6.35284759,241.13,241.05,2.2]
[1732748417864,6.35284759,241.15,241.06,6.35284759]
[1732748418070,1.222,241.19,241.06,6.35284759]
[1732748418271,6.35284759,241.16,241.06,6.35284759]
[1732748418765,2.0711,241.13,241.07,2.0716]
[1732748421268,2.0711,241.13,241.08,2.0715]
[1732748422471,2.0711,241.13,241.08,8.42434759]
[1732748422867,6.35284759,241.16,241.08,8.42434759]
[1732748423067,6.35284759,241.16,241.08,6.35284759]
[1732748423068,2.0712,241.12,241.08,6.35284759]
[1732748424477,2.0712,241.12,241.07,2.0716]
[1732748425472,2.0715,241.09,241.07,2.2]
[1732748425971,6.35284759,241.12,241.05,2.2]
[1732748427171,2.0714,241.1,241.05,2.2]
[1732748427377,6.35284759,241.12,241.05,2.2]
[1732748428673,6.35284759,241.12,241.02,1.2853]
[1732748428877,6.35284759,241.1,241.02,2.2]
[1732748429674,6.35284759,241.1,241.0,2.0722]
[1732748429876,6.35284759,241.1,241.0,8.42504759]
[1732748431075,6.35284759,241.1,241.0,6.35284759]
[1732748431474,1.2111,241.09,241.0,6.35284759]
[1732748432473,2.0717,241.07,241.0,6.35284759]
[1732748432671,1.2111,241.09,241.0,6.35284759]
[1732748433676,6.35284759,241.05,240.95,2.2]
[1732748433975,6.35284759,241.03,240.93,6.35284759]
[1732748434180,2.2,241.06,240.97,6.35284759]
[1732748434476,6.35284759,241.05,240.97,6.35284759]
[1732748434680,2.0725,240.97,240.95,6.35284759]
[1732748434876,6.35284759,241.05,240.95,6.35284759]
[1732748435381,2.0726,240.96,240.95,6.35284759]
[1732748435784,2.072,241.03,240.95,6.35284759]
[1732748435977,2.2,241.06,240.97,6.35284759]
[1732748436484,2.072,241.04,240.97,6.35284759]
[1732748436675,6.35284759,241.07,240.98,2.2]
[1732748437180,6.35284759,241.05,240.98,2.2]
[1732748438883,1.254,241.08,240.98,2.2]
[1732748438884,6.35284759,241.06,240.98,2.2]
[1732748439081,2.0723,241.0,240.98,2.2]
[1732748440181,2.0723,240.99,240.98,2.2]
[1732748442379,2.0723,240.99,240.98,8.55284759]
[1732748455287,2.0723,241.0,240.98,8.55284759]
[1732748455485,6.35284759,241.07,240.98,8.55284759]
[1732748455689,1.2625,241.1,241.02,6.35284759]
[1732748455888,2.0718,241.06,241.02,8.42494759]
[1732748456092,1.2625,241.1,241.04,6.35284759]
[1732748456480,6.35284759,241.14,241.04,8.55284759]
[1732748457190,2.0716,241.07,241.04,8.55284759]
[1732748457686,6.35284759,241.14,241.04,8.55284759]
[1732748457881,6.35284759,241.14,241.06,6.35284759]
[1732748458081,2.5563,241.18,241.06,6.35284759]
[1732748458286,6.35284759,241.17,241.08,6.35284759]
[1732748459085,46.74654687,241.19,241.1,6.35284759]
[1732748459290,53.09939446,241.19,241.1,8.55284759]
[1732748460188,2.0711,241.13,241.1,8.55284759]
[1732748461789,1.23,241.24,241.12,6.35284759]
[1732748462093,1.23,241.24,241.18,6.35284759]
[1732748462094,2.0703,241.23,241.18,6.35284759]
[1732748462293,1.23,241.24,241.18,6.35284759]
[1732748462489,1.3096,241.25,241.2,6.35284759]
[1732748462789,2.0703,241.23,241.2,6.35284759]
[1732748463093,2.0703,241.23,241.2,8.55284759]
[1732748463293,6.35284759,241.3,241.2,8.55284759]
[1732748463594,2.0702,241.24,241.2,8.55284759]
[1732748463989,6.35284759,241.3,241.06,1.245]
[1732748464193,6.35284759,241.28,241.2,6.35284759]
[1732748464390,6.35284759,241.28,241.2,8.55284759]
[1732748464898,2.0703,241.23,241.2,8.55284759]
[1732748465390,6.35284759,241.28,241.2,8.55284759]
[1732748465890,6.35284759,241.3,241.2,8.55284759]
[1732748466692,1.3289,241.33,241.22,6.35284759]
[1732748466892,2.07,241.26,241.22,6.35284759]
[1732748467790,2.2,241.36,241.2,2.2]
[1732748467992,6.35284759,241.31,241.22,6.35284759]
[1732748468295,2.2,241.36,241.22,6.35284759]
[1732748468496,6.35284759,241.3,241.22,6.35284759]
[1732748469084,2.07,241.26,241.22,6.35284759]
[1732748469891,3.8088,241.38,241.24,6.35284759]
[1732748470086,6.35284759,241.36,241.26,6.35284759]
[1732748470289,6.35284759,241.36,241.16,36.06340587]
[1732748470290,6.35284759,241.36,241.28,6.35284759]
[1732748470492,6.35284759,241.36,241.29,2.2]
[1732748471088,7.61914759,241.38,241.29,2.2]
[1732748471593,2.0694,241.33,241.29,2.2]
[1732748473792,2.0694,241.33,241.3,6.35284759]
[1732748474089,2.0692,241.36,241.3,8.42254759]
[1732748474288,49.43931369,241.4,241.25,2.2]
[1732748474489,6.35284759,241.38,241.29,6.35284759]
[1732748474688,6.35284759,241.38,241.31,2.0696]
[1732748474892,6.35284759,241.38,241.29,6.35284759]
[1732748475394,6.35284759,241.38,241.29,8.42254759]
[1732748476093,2.0693,241.34,241.29,8.42254759]
[1732748476502,2.0693,241.34,241.29,6.35284759]
[1732748476793,2.0693,241.34,241.3,2.0697]
[1732748476999,2.0693,241.34,241.31,2.2]
[1732748478798,2.0694,241.33,241.31,2.2]
[1732748481101,2.0693,241.35,241.31,2.2]
[1732748481700,2.0693,241.35,241.31,8.55284759]
[1732748482104,2.0691,241.37,241.31,8.55284759]
[1732748482697,2.0691,241.37,241.33,6.35284759]
[1732748482908,2.0691,241.37,241.33,8.42224759]
[1732748483111,2.0691,241.37,241.31,2.2]
[1732748483306,2.0691,241.37,241.32,6.35284759]
[1732748483914,2.0691,241.37,241.32,8.42234759]
[1732748484722,2.0692,241.36,241.32,8.42234759]
[1732748485921,2.0692,241.36,241.33,2.2]
[1732748487122,49.43931369,241.4,241.33,2.2]
[1732748487918,2.0692,241.36,241.33,2.2]
[1732748489519,2.0691,241.37,241.33,4.2694]
[1732748490023,2.0692,241.36,241.33,2.2]
[1732748490925,2.0692,241.35,241.33,2.2]
[1732748491224,6.35284759,241.39,241.33,2.2]
[1732748491613,6.35284759,241.37,241.26,1.2498]
[1732748491813,1.2708,241.38,241.27,6.35284759]
[1732748492014,6.35284759,241.35,241.27,6.35284759]
[1732748492423,1.1952,241.36,241.27,6.35284759]
[1732748492722,2.0694,241.34,241.27,6.35284759]
[1732748492924,1.1952,241.36,241.27,10.62274759]
[1732748493525,1.1952,241.36,241.27,8.55284759]
[1732748494020,2.0697,241.31,241.27,8.55284759]
[1732748494323,1.1952,241.36,241.27,2.2]
[1732748494518,1.1952,241.36,241.28,6.35284759]
[1732748494917,6.35284759,241.34,241.24,6.35284759]
[1732748495121,6.35284759,241.32,241.24,6.35284759]
[1732748495325,2.0701,241.26,241.24,6.35284759]
[1732748495830,2.0701,241.25,241.24,6.35284759]
[1732748496029,2.0701,241.25,241.22,8.55284759]
[1732748497227,6.35284759,241.32,241.22,8.55284759]
[1732748497726,2.07,241.27,241.24,6.35284759]
[1732748499425,6.35284759,241.32,241.23,8.55284759]
[1732748500028,6.35284759,241.34,241.23,8.55284759]
[1732748501030,2.2,241.35,241.25,6.35284759]
[1732748501234,6.35284759,241.34,241.25,6.35284759]
[1732748501431,6.35284759,241.34,241.23,8.55284759]
[1732748502228,2.0701,241.26,241.23,8.55284759]
[1732748503326,6.35284759,241.32,241.23,8.55284759]
[1732748503832,6.35284759,241.3,241.23,2.2]
[1732748504128,6.35284759,241.32,241.23,8.55284759]
[1732748504541,2.0702,241.25,241.23,8.55284759]
[1732748505032,2.0702,241.24,241.19,2.0705]
[1732748505436,2.0702,241.24,241.22,6.35284759]
[1732748505634,2.0702,241.24,241.21,2.2]
[1732748505941,2.0702,241.24,241.22,6.35284759]
[1732748506332,6.35284759,241.32,241.22,6.35284759]
[1732748507033,2.0698,241.29,241.22,6.35284759]
[1732748507234,6.35284759,241.32,241.22,6.35284759]
[1732748507936,2.0698,241.29,241.22,6.35284759]
[1732748508144,6.35284759,241.32,241.22,6.35284759]
[1732748508830,2.2,241.35,241.24,6.35284759]
[1732748509142,2.0701,241.25,241.24,6.35284759]
[1732748514737,1.1952,241.36,241.24,6.35284759]
[1732748514941,1.1952,241.36,241.28,6.35284759]
[1732748515949,2.0696,241.31,241.28,6.35284759]
[1732748516649,53.37219594,241.35,241.28,6.35284759]
[1732748517348,1.1952,241.36,241.28,6.35284759]
[1732748517946,2.0694,241.33,241.29,2.0697]
[1732748518952,2.0695,241.32,241.29,2.0697]
[1732748519150,2.0695,241.32,241.28,6.35284759]
[1732748519849,2.0695,241.32,241.28,8.42264759]
[1732748520945,2.0695,241.32,241.28,2.0698]
[1732748521148,2.0695,241.32,241.28,8.42264759]
[1732748521654,0.15873,241.38,241.3,6.35284759]
[1732748521856,0.15873,241.38,241.36,8.42194759]
[1732748522046,0.15873,241.38,241.37,2.2]
[1732748522445,0.15873,241.38,241.37,4.2691]
[1732748522849,2.0683,241.46,241.4,2.0688]
[1732748523051,6.35284759,241.49,241.4,6.35284759]
[1732748523250,1.2442,241.51,241.42,6.35284759]
[1732748523251,7.59704759,241.51,241.42,6.35284759]
[1732748523551,1.2442,241.51,241.43,10.62134759]
[1732748523751,83.38545486,241.58,241.5,6.35284759]
[1732748523951,2.0676,241.55,241.5,8.55284759]
[1732748524151,2.0676,241.55,241.5,2.2]
[1732748524351,2.0676,241.55,241.5,8.55284759]
[1732748524655,2.0676,241.54,241.5,8.55284759]
[1732748524952,2.0676,241.54,241.5,2.2]
[1732748526153,2.0675,241.55,241.5,2.2]
[1732748526852,6.35284759,241.53,241.48,2.18]
[1732748527045,6.35284759,241.53,241.44,6.35284759]
[1732748527249,85.56545486,241.58,241.43,2.18]
[1732748527250,2.0684,241.46,241.43,2.18]
[1732748527749,6.35284759,241.51,241.43,2.18]
[1732748528454,2.0683,241.46,241.43,2.18]
[1732748528653,2.0683,241.46,241.44,6.35284759]
[1732748529751,12.45,241.77,241.44,6.35284759]
[1732748529952,1.3081,241.74,241.66,6.35284759]
[1732748530256,1.3081,241.74,241.45,13.6662]
[1732748530257,1.3081,241.74,241.68,6.35284759]
[1732748530556,2.18,241.73,241.68,6.35284759]
[1732748531256,2.18,241.73,241.66,6.35284759]
[1732748532263,2.0663,241.7,241.63,2.0668]
[1732748532855,2.18,241.73,241.61,9.85737992]
[1732748533056,12.03737992,241.73,241.52,2.18]
[1732748533255,9.85737992,241.68,241.49,4.2024542]
[1732748533464,2.0671,241.6,241.53,2.0676]
[1732748533763,3.4618,241.67,241.53,2.0676]
[1732748533961,2.067,241.62,241.54,2.0676]
[1732748534165,2.067,241.62,241.55,9.85737992]
[1732748534661,2.067,241.61,241.55,9.85737992]
[1732748534854,2.18,241.64,241.55,9.85737992]
[1732748535164,12.03737992,241.64,241.47,1.2469]
[1732748535461,12.03737992,241.64,241.48,9.85737992]
[1732748535462,1.2552,241.63,241.48,9.85737992]
[1732748535858,2.0677,241.53,241.48,9.85737992]
[1732748536665,2.18,241.56,241.48,9.85737992]